bitfinex/quotes_BTCUSD_20251208
["timestamp","ask_amount","ask_price","bid_price","bid_amount"]
[1765235156064,0.06499804,90989.0,90988.0,0.0011187]
[1765235158175,0.06515785,90989.0,90988.0,0.0011187]
[1765235159373,0.0655576,90989.0,90988.0,0.0011187]
[1765235160755,0.11756761,90989.0,90988.0,0.0011187]
[1765235161154,0.1278209,90989.0,90988.0,0.0011187]
[1765235161569,0.1278209,90989.0,90945.0,0.01099565]
[1765235161570,0.01099493,90951.0,90945.0,0.01099565]
[1765235161789,0.01099493,90951.0,90940.0,0.65237178]
[1765235161790,0.21990104,90950.0,90949.0,0.0174]
[1765235162218,0.25891104,90950.0,90949.0,0.0174]
[1765235163477,0.26091104,90950.0,90949.0,0.0194]
[1765235164708,0.25991104,90950.0,90949.0,0.0194]
[1765235165132,0.26091104,90950.0,90949.0,0.0194]
[1765235165334,0.04001,90950.0,90949.0,0.0174]
[1765235165539,0.01833,90950.0,90949.0,0.0204]
[1765235165698,0.01533,90950.0,90949.0,0.0174]
[1765235165908,0.03901,90950.0,90949.0,0.0174]
[1765235166091,0.04101,90950.0,90949.0,0.0214]
[1765235172959,0.04262287,90950.0,90949.0,0.0214]
[1765235173365,0.0701105,90950.0,90949.0,0.0214]
[1765235177866,0.04262287,90950.0,90949.0,0.0214]
[1765235178181,0.0701105,90950.0,90949.0,0.0214]
[1765235178587,0.0701105,90950.0,90949.0,0.004]
[1765235178926,0.16957832,90950.0,90949.0,0.004]
[1765235179572,0.17980451,90950.0,90949.0,0.004]
[1765235180291,0.17157832,90950.0,90949.0,0.004]
[1765235180701,0.21990346,90949.0,90948.0,0.00038845]
[1765235180917,0.26044346,90949.0,90948.0,0.00038845]
[1765235181116,0.36770458,90949.0,90948.0,0.00038845]
[1765235181851,0.36970458,90949.0,90948.0,0.00038845]
[1765235182639,0.37170458,90949.0,90948.0,0.00138845]
[1765235188359,0.38194995,90949.0,90948.0,0.00138845]
[1765235188598,0.27468883,90949.0,90948.0,0.00138845]
[1765235190545,0.27469769,90949.0,90948.0,0.00138845]
[1765235190955,0.26444346,90949.0,90948.0,0.00138845]
[1765235191160,0.23964346,90949.0,90948.0,0.00138845]
[1765235191360,0.26444346,90949.0,90948.0,0.00138845]
[1765235193443,0.26044346,90949.0,90948.0,0.00038845]
[1765235193874,0.26244346,90949.0,90948.0,0.00138845]
[1765235194294,0.002,90949.0,90948.0,1.52321832]
[1765235194535,0.01202,90982.0,90978.0,0.323]
[1765235194720,0.01202,90991.0,90988.0,0.01099046]
[1765235194967,0.01098949,90996.0,90993.0,0.01098985]
[1765235195201,0.01098937,90997.0,90994.0,0.0174]
[1765235195738,0.01574,90995.0,90994.0,0.02838973]
[1765235195972,0.01574,90995.0,90994.0,0.02850772]
[1765235196409,0.01574,90995.0,90994.0,0.01751799]
[1765235196410,0.23553229,90995.0,90994.0,0.01751799]
[1765235196583,0.26033229,90995.0,90994.0,0.01751799]
[1765235196995,0.26233229,90995.0,90994.0,0.02151799]
[1765235197627,0.04054,90995.0,90994.0,0.01751799]
[1765235197900,0.04054,90995.0,90994.0,0.01951799]
[1765235197901,0.04154,90995.0,90994.0,0.01951799]
[1765235198307,0.06901403,90995.0,90994.0,0.01951799]
[1765235198478,0.07001403,90995.0,90994.0,0.01951799]
[1765235198929,0.01674,90995.0,90994.0,0.01951799]
[1765235199183,0.01574,90995.0,90994.0,0.01751799]
[1765235199515,0.01674,90995.0,90994.0,0.01951799]
[1765235200143,0.01674,90995.0,90994.0,0.2393127]
[1765235200449,0.04154,90995.0,90994.0,0.01951799]
[1765235200624,0.26133229,90995.0,90994.0,0.01951799]
[1765235200818,0.04154,90995.0,90994.0,0.01951799]
[1765235201063,0.06901403,90995.0,90994.0,0.01951799]
[1765235201456,0.01674,90995.0,90994.0,0.01951799]
[1765235201665,0.001,90995.0,90994.0,0.01951799]
[1765235202481,0.01682,90995.0,90994.0,0.01951799]
[1765235202687,0.001,90995.0,90994.0,0.01951799]
[1765235206692,0.01682,90995.0,90994.0,0.01951799]
[1765235208046,0.03935,90995.0,90994.0,0.01951799]
[1765235208267,0.06682403,90995.0,90994.0,0.01951799]
[1765235208454,0.001,90995.0,90994.0,0.5623127]
[1765235211173,0.001,90995.0,90994.0,0.34251799]
[1765235211808,0.01682,90995.0,90994.0,0.34251799]
[1765235212860,0.03935,90995.0,90994.0,0.34251799]
[1765235213190,0.04096287,90995.0,90994.0,0.32511799]
[1765235213412,0.0684369,90995.0,90994.0,0.34251799]
[1765235213896,0.0684369,90995.0,90994.0,0.32511799]
[1765235214123,0.0684369,90995.0,90994.0,0.00211799]
[1765235214353,0.05882333,90995.0,90994.0,0.00211799]
[1765235214598,0.06682171,90995.0,90994.0,0.00211799]
[1765235215160,0.05880458,90995.0,90994.0,0.00211799]
[1765235217451,0.0684369,90995.0,90994.0,0.00211799]
[1765235219705,0.04096287,90995.0,90994.0,0.00211799]
[1765235219906,0.0684369,90995.0,90994.0,0.00211799]
[1765235220629,0.04096287,90995.0,90994.0,0.00211799]
[1765235220836,0.0684369,90995.0,90994.0,0.00211799]
[1765235221807,0.0684369,90995.0,90994.0,0.00011799]
[1765235222193,0.0704369,90995.0,90994.0,0.00111799]
[1765235222396,0.0603874,90995.0,90994.0,0.00111799]
[1765235222606,0.0704369,90995.0,90994.0,0.00111799]
[1765235248616,0.15013121,90995.0,90994.0,0.00111799]
[1765235249231,0.16043096,90995.0,90994.0,0.00111799]
[1765235249385,0.15013121,90995.0,90994.0,0.00111799]
[1765235250015,0.14813121,90995.0,90994.0,0.00011799]
[1765235250208,0.15313121,90995.0,90994.0,0.00111799]
[1765235250640,0.15213121,90995.0,90994.0,0.00111799]
[1765235250987,0.15513121,90995.0,90994.0,0.00111799]
[1765235251189,0.16542947,90995.0,90994.0,0.00111799]
[1765235251682,0.01099299,90967.0,90964.0,0.04398674]
[1765235251851,0.2198962,90952.0,90950.0,0.5742585]
[1765235252052,0.2198962,90952.0,90950.0,0.00038845]
[1765235252053,0.02832,90951.0,90950.0,0.00038845]
[1765235252258,0.02832,90951.0,90950.0,0.01774845]
[1765235252603,0.05103,90951.0,90950.0,0.01774845]
[1765235253452,0.05303,90951.0,90950.0,0.02574845]
[1765235254846,0.05303,90951.0,90950.0,0.02774845]
[1765235256907,0.03032,90951.0,90950.0,0.57064949]
[1765235257846,0.01099106,90983.0,90979.0,0.01099154]
[1765235258028,0.01226,90984.0,90979.0,0.01099154]
[1765235258029,0.01226,90984.0,90982.0,0.04398674]
[1765235258208,0.24253128,90983.0,90982.0,0.04398674]
[1765235258410,0.03877,90983.0,90982.0,0.04398674]
[1765235258828,2.74552421,91058.0,90995.0,0.01098961]
[1765235258829,0.01122514,90998.0,90995.0,0.01098961]
[1765235259036,0.00023589,90998.0,90995.0,0.01105263]
[1765235259249,0.00023589,90998.0,90997.0,0.323]
[1765235260252,0.00223589,90998.0,90997.0,0.323]
[1765235260629,0.00023589,90998.0,90995.0,0.55384257]
[1765235260860,0.00023589,90998.0,90997.0,0.324]
[1765235261370,0.01629589,90998.0,90997.0,0.324]
[1765235261584,0.01629589,90998.0,90997.0,0.323]
[1765235261949,0.01829589,90998.0,90997.0,0.007]
[1765235262954,0.01829589,90998.0,90997.0,0.22678746]
[1765235263296,0.01829589,90998.0,90997.0,0.54978746]
[1765235263455,0.01829589,90998.0,90997.0,0.33]
[1765235263646,0.01829589,90998.0,90997.0,0.331]
[1765235263647,0.26138094,90998.0,90997.0,0.331]
[1765235263846,0.04159589,90998.0,90997.0,0.331]
[1765235264066,0.06906902,90998.0,90997.0,0.331]
[1765235267656,0.07068189,90998.0,90997.0,0.331]
[1765235268067,0.04320876,90998.0,90997.0,0.331]
[1765235271624,0.01990876,90998.0,90997.0,0.55078746]
[1765235272424,0.01990876,90998.0,90997.0,0.331]
[1765235272843,0.01990876,90998.0,90997.0,0.37498674]
[1765235273429,0.00223589,90998.0,90997.0,0.37498674]
[1765235274280,0.00223589,90998.0,90997.0,0.39698674]
[1765235274481,0.00223589,90998.0,90997.0,0.37498674]
[1765235274845,0.00223589,90998.0,90997.0,0.39698674]
[1765235275067,0.00223589,90998.0,90997.0,1.03309474]
[1765235279184,0.00223589,90998.0,90997.0,1.01109474]
[1765235279388,0.00223589,90998.0,90997.0,1.09561773]
[1765235279602,0.00223589,90998.0,90997.0,1.10801773]
[1765235280008,0.00223589,90998.0,90997.0,1.14080317]
[1765235280727,0.00023589,90998.0,90997.0,1.10101773]
[1765235281140,0.00223589,90998.0,90997.0,1.10801773]
[1765235281544,0.00223589,90998.0,90997.0,1.10701773]
[1765235281760,0.00023589,90998.0,90997.0,1.10201773]
[1765235282094,0.00223589,90998.0,90997.0,1.11001773]
[1765235283125,0.00223589,90998.0,90997.0,1.10801773]
[1765235283321,0.00023589,90998.0,90997.0,1.10001773]
[1765235283483,0.00023589,90998.0,90997.0,1.10101773]
[1765235283683,0.00123589,90998.0,90997.0,1.10401773]
[1765235284040,0.00023589,90998.0,90997.0,1.10101773]
[1765235284191,0.00123589,90998.0,90997.0,1.10201773]
[1765235288776,0.00123589,90998.0,90997.0,1.08001773]
[1765235289052,0.00123589,90998.0,90997.0,1.10201773]
[1765235289251,0.27372381,90998.0,90997.0,0.04598674]
[1765235290334,0.27272381,90998.0,90997.0,0.04498674]
[1765235290479,0.27572381,90998.0,90997.0,0.04598674]
[1765235290688,0.27272381,90998.0,90997.0,0.04498674]
[1765235290891,0.27272381,90998.0,90997.0,0.04398674]
[1765235291094,0.27572381,90998.0,90997.0,0.04498674]
[1765235292550,0.25185381,90998.0,90997.0,0.04498674]
[1765235292794,0.00484876,90998.0,90997.0,0.04498674]
[1765235292973,0.00323589,90998.0,90997.0,0.6097742]
[1765235293536,0.00323589,90998.0,90997.0,0.5877742]
[1765235294477,0.00323589,90998.0,90997.0,0.36798674]
[1765235296419,0.01550589,90998.0,90997.0,0.36798674]
[1765235296619,0.05820876,90998.0,90997.0,0.38534674]
[1765235297884,0.00484876,90998.0,90997.0,0.40734674]
[1765235298330,0.00484876,90998.0,90997.0,0.38534674]
[1765235300291,0.00323589,90998.0,90997.0,0.40734674]
[1765235302951,0.00323589,90998.0,90997.0,0.38534674]
[1765235303154,0.00323589,90998.0,90997.0,0.40734674]
[1765235303898,0.00023589,90998.0,90997.0,0.40634674]
[1765235304244,0.00123589,90998.0,90997.0,0.53633274]
[1765235304446,0.00123589,90998.0,90997.0,0.53733274]
[1765235305822,0.00123589,90998.0,90997.0,0.51533274]
[1765235307634,0.00123589,90998.0,90997.0,0.53733274]
[1765235310170,0.00123589,90998.0,90997.0,0.51533274]
[1765235310344,0.00123589,90998.0,90997.0,0.53733274]
[1765235310546,0.00123589,90998.0,90997.0,0.61084305]
[1765235310770,0.00123589,90998.0,90997.0,0.58884305]
[1765235314712,0.00123589,90998.0,90997.0,0.61084305]
[1765235316966,0.00123589,90998.0,90997.0,0.59985573]
[1765235321612,0.00123589,90998.0,90997.0,0.59885573]
[1765235321961,0.00023589,90998.0,90997.0,0.59985573]
[1765235322407,0.00123589,90998.0,90997.0,0.63464117]
[1765235323614,1e-08,91010.0,91008.0,0.06252299]
[1765235323878,1e-08,91010.0,91009.0,2.43478257]
[1765235324002,1e-08,91010.0,91009.0,2.42488299]
[1765235324207,1e-08,91010.0,91009.0,2.43586789]
[1765235325449,0.00200001,91010.0,91009.0,2.46965333]
[1765235326216,1e-08,91010.0,91009.0,2.46865333]
[1765235326417,0.00200001,91010.0,91009.0,2.46965333]
[1765235327847,0.00200001,91010.0,91009.0,2.44765333]
[1765235328097,0.0004,91030.0,91029.0,2.62723319]
[1765235328285,0.0004,91030.0,91029.0,2.64459319]
[1765235328693,0.0004,91030.0,91029.0,2.65597616]
[1765235329352,0.0013859,91030.0,91029.0,1.38098716]
[1765235330197,0.0013859,91030.0,91029.0,1.38198716]
[1765235331006,0.0013859,91030.0,91029.0,1.38298716]
[1765235333550,0.0013859,91030.0,91029.0,1.4157726]
[1765235333902,0.0013859,91030.0,91029.0,1.4147726]
[1765235334331,0.0013859,91030.0,91029.0,1.4157726]
[1765235335632,0.0013859,91030.0,91029.0,1.4167726]
[1765235336456,0.0013859,91030.0,91029.0,1.44617973]
[1765235338632,0.0013859,91030.0,91029.0,1.17116424]
[1765235338833,0.0013859,91030.0,91029.0,0.76971317]
[1765235339369,0.0013859,91030.0,91029.0,1.15523616]
[1765235340038,0.0013859,91030.0,91029.0,1.15423616]
[1765235340549,0.0013859,91030.0,91029.0,0.95685716]
[1765235340758,0.0013859,91030.0,91028.0,0.04398674]
[1765235340970,0.02811,91029.0,91028.0,0.04398674]
[1765235341170,0.02811,91029.0,91028.0,0.06134674]
[1765235341376,0.05448287,91029.0,91028.0,0.06134674]
[1765235341574,0.02972287,91029.0,91028.0,0.06134674]
[1765235341785,0.05448287,91029.0,91028.0,0.06134674]
[1765235342314,0.05648287,91029.0,91028.0,0.06134674]
[1765235342752,0.05448287,91029.0,91028.0,0.06134674]
[1765235344133,0.05648287,91029.0,91028.0,0.06134674]
[1765235344321,0.05648287,91029.0,91006.0,0.03299184]
[1765235344322,0.21974641,91014.0,91006.0,0.03299184]
[1765235344543,0.01098889,91001.0,90997.0,0.05497611]
[1765235344827,0.01098889,91001.0,90998.0,0.01736]
[1765235345026,0.01174,91000.0,90998.0,0.01736]
[1765235345530,0.01198,91005.0,91001.0,0.01098889]
[1765235345702,0.01198,91005.0,91001.0,0.01105191]
[1765235345907,0.01198,91005.0,91002.0,0.01098876]
[1765235346297,0.0229684,91005.0,91002.0,0.01098876]
[1765235346499,0.0161,91003.0,91001.0,6.302e-05]
[1765235346708,0.0161,91002.0,91001.0,6.302e-05]
[1765235347154,0.0229684,91005.0,91001.0,0.01105191]
[1765235347668,0.01198,91005.0,91003.0,0.323]
[1765235348366,0.01198,91005.0,91004.0,0.54277055]
[1765235348578,0.02272744,91013.0,91009.0,0.33398792]
[1765235348798,0.02272744,91013.0,91012.0,0.04398674]
[1765235349004,0.24247626,91013.0,91012.0,0.04398674]
[1765235349220,0.28264626,91013.0,91012.0,0.04398674]
[1765235350386,0.28364626,91013.0,91012.0,0.04398674]
[1765235351222,0.28764626,91013.0,91012.0,0.001]
[1765235354770,0.26357626,91013.0,91012.0,0.001]
[1765235355230,0.26357626,91013.0,91012.0,0.01836]
[1765235355231,0.00544219,91013.0,91012.0,0.01836]
[1765235355454,0.00544219,91013.0,91012.0,0.06234674]
[1765235356270,0.00444219,91013.0,91012.0,0.06234674]
[1765235356507,0.00444219,91013.0,91001.0,6.302e-05]
[1765235356508,0.01098852,91004.0,91001.0,6.302e-05]
[1765235356712,0.01098852,91004.0,91002.0,0.01736]
[1765235356713,0.23076122,91004.0,91002.0,0.01736]
[1765235357339,0.01641,91003.0,91002.0,0.01736]
[1765235357966,0.23076122,91004.0,91002.0,0.01736]
[1765235357967,0.01098852,91004.0,91002.0,0.01936]
[1765235358947,0.01164,91008.0,91005.0,0.0109884]
[1765235359151,0.01098792,91009.0,91005.0,0.0109884]
[1765235359972,0.01098707,91016.0,91010.0,0.323]
[1765235360205,0.23073632,91013.0,91010.0,0.323]
[1765235360983,0.23073632,91013.0,91009.0,0.01098792]
[1765235360984,0.01098756,91012.0,91009.0,0.01098792]
[1765235361184,0.23074133,91011.0,91008.0,0.323]
[1765235361414,0.01098768,91011.0,91008.0,0.323]
[1765235361848,0.24780848,91009.0,91008.0,0.323]
[1765235362053,0.01098816,91007.0,91002.0,0.02834876]
[1765235362279,0.01098828,91006.0,91003.0,0.33398864]
[1765235362467,0.01098816,91007.0,91003.0,0.33398864]
[1765235363053,0.01098828,91006.0,91003.0,0.323]
[1765235363252,0.01641,91004.0,91001.0,0.04404976]
[1765235363439,0.01641,91002.0,91001.0,0.04404976]
[1765235363772,0.01641,91002.0,91001.0,0.06144976]
[1765235363976,0.03984,91002.0,91001.0,0.06144976]
[1765235365544,0.03984,91002.0,91001.0,0.06344976]
[1765235365958,0.06731192,91002.0,91001.0,0.06144976]
[1765235366162,0.06731192,91002.0,91001.0,0.06544976]
[1765235368658,0.04388192,91002.0,91001.0,0.06544976]
[1765235368852,0.06731192,91002.0,91001.0,0.06544976]
[1765235369094,0.0109884,91005.0,91002.0,0.01098876]
[1765235369709,0.0109884,91005.0,91003.0,0.323]
[1765235370114,0.01122413,91006.0,91003.0,0.33398864]
[1765235370320,0.23099166,91006.0,91003.0,0.323]
[1765235370657,0.23075851,91005.0,91002.0,0.001]
[1765235371015,0.21977297,91003.0,91001.0,0.38444976]
[1765235371418,0.21977297,91003.0,91002.0,0.001]
[1765235371647,0.00023585,91006.0,91003.0,0.01098864]
[1765235372046,0.00023585,91006.0,91004.0,0.323]
[1765235372494,0.00023585,91006.0,91005.0,0.01736]
[1765235373678,0.00023585,91006.0,91005.0,0.01836]
[1765235373922,0.00023585,91006.0,91005.0,0.01936]
[1765235382156,0.00023585,91006.0,91005.0,0.34236]
[1765235384494,0.00023585,91006.0,91005.0,0.36436]
[1765235385353,0.00023585,91006.0,91005.0,0.34236]
[1765235385510,0.00023585,91006.0,91005.0,0.36436]
[1765235386077,0.00023585,91006.0,91005.0,0.34236]
[1765235390827,0.00023585,91006.0,91005.0,0.01936]
[1765235392225,0.01182585,91006.0,91005.0,0.01936]
[1765235392452,0.05058585,91006.0,91005.0,0.01936]
[1765235392651,0.02741585,91006.0,91005.0,0.002]
[1765235392828,0.05488656,91006.0,91005.0,0.002]
[1765235393208,0.07805656,91006.0,91005.0,0.002]
[1765235401694,0.05488656,91006.0,91005.0,0.002]
[1765235401914,0.00023585,91006.0,91005.0,0.325]
[1765235402503,0.27194157,91006.0,91005.0,0.325]
[1765235402886,0.24847157,91006.0,91005.0,0.325]
[1765235404298,0.24847157,91006.0,91005.0,0.002]
[1765235404501,0.27194157,91006.0,91005.0,0.002]
[1765235407609,0.27194157,91006.0,91001.0,6.302e-05]
[1765235407610,0.21977538,91002.0,91001.0,6.302e-05]
[1765235407817,0.23617538,91002.0,91001.0,6.302e-05]
[1765235408021,0.25964538,91002.0,91001.0,6.302e-05]
[1765235408793,0.26064538,91002.0,91001.0,6.302e-05]
[1765235409894,0.26064538,91002.0,91001.0,0.00106302]
[1765235411487,0.3362892,91002.0,91001.0,0.00106302]
[1765235411691,0.26064538,91002.0,91001.0,0.00106302]
[1765235413276,0.001,91002.0,91001.0,0.00106302]
[1765235415923,0.04507192,91002.0,91001.0,0.00106302]
[1765235416337,0.0176,91002.0,91001.0,0.00106302]
[1765235416974,0.06805192,91002.0,91001.0,0.00106302]
[1765235421588,0.06805192,91002.0,91001.0,0.01842302]
[1765235427702,0.14639861,91002.0,91001.0,0.00106302]
[1765235428184,0.06805192,91002.0,91001.0,0.00106302]
[1765235428999,0.06705192,91002.0,91001.0,0.00106302]
[1765235429234,0.06705192,91002.0,91001.0,6.302e-05]
[1765235429431,0.07005192,91002.0,91001.0,6.302e-05]
[1765235429649,0.06705192,91002.0,91001.0,6.302e-05]
[1765235430190,0.07105192,91002.0,91001.0,6.302e-05]
[1765235431332,0.07305192,91002.0,91001.0,6.302e-05]
[1765235431893,0.08005192,91002.0,91001.0,0.00106302]
[1765235445686,0.0109907,90986.0,90983.0,0.01736]
[1765235445887,0.02665,90984.0,90983.0,0.01736]
[1765235446291,0.05082,90984.0,90983.0,0.01736]
[1765235447059,0.01099215,90974.0,90971.0,0.323]
[1765235447259,0.21985753,90968.0,90967.0,0.04398674]
[1765235447464,0.23496753,90968.0,90967.0,0.06134674]
[1765235447686,0.25913753,90968.0,90967.0,0.06134674]
[1765235448061,0.03928,90968.0,90967.0,0.06134674]
[1765235448264,0.2308471,90970.0,90967.0,0.07233973]
[1765235448265,0.01099263,90970.0,90967.0,0.07233973]
[1765235448468,0.01099263,90970.0,90967.0,0.29219967]
[1765235448684,0.01099263,90970.0,90967.0,0.29419967]
[1765235448848,0.01154,90972.0,90967.0,0.07433973]
[1765235449052,0.01154,90972.0,90969.0,0.01099275]
[1765235450087,0.01154,90972.0,90970.0,0.21985095]
[1765235451210,0.01254,90972.0,90969.0,0.23484786]
[1765235451412,0.01154,90972.0,90969.0,0.23184786]
[1765235451632,0.01154,90972.0,90970.0,0.21985062]
[1765235451838,0.02417,90971.0,90970.0,0.003]
[1765235451992,0.21985269,90970.0,90969.0,0.001]
[1765235452202,0.21985753,90968.0,90967.0,0.06134674]
[1765235452416,0.23496753,90968.0,90967.0,0.06134674]
[1765235452672,0.25913753,90968.0,90967.0,0.06134674]
[1765235453370,0.25913753,90968.0,90967.0,0.06334674]
[1765235453784,0.01511,90968.0,90967.0,0.60620668]
[1765235454035,0.001,90968.0,90967.0,0.29819967]
[1765235459658,0.001,90968.0,90967.0,0.33121076]
[1765235460819,0.001,90968.0,90967.0,0.35321076]
[1765235461094,0.001,90968.0,90967.0,0.33121076]
[1765235461294,0.001,90968.0,90967.0,0.35321076]
[1765235461512,0.001,90968.0,90967.0,0.33121076]
[1765235461719,0.001,90968.0,90967.0,0.35321076]
[1765235463821,0.001,90968.0,90967.0,0.67621076]
[1765235464669,0.001,90968.0,90967.0,0.65421076]
[1765235465670,0.001,90968.0,90967.0,0.40599783]
[1765235465859,0.04135,90968.0,90967.0,0.40599783]
[1765235466068,0.09555973,90968.0,90967.0,0.006]
[1765235466491,0.04296287,90968.0,90967.0,0.006]
[1765235466716,0.04196287,90968.0,90967.0,0.002]
[1765235467112,0.04296287,90968.0,90967.0,0.008]
[1765235467364,0.04196287,90968.0,90967.0,0.002]
[1765235467765,0.21985994,90967.0,90966.0,0.01736]
[1765235467979,0.26020994,90967.0,90966.0,0.01736]
[1765235468967,0.26120994,90967.0,90966.0,0.01736]
[1765235469384,0.26220994,90967.0,90966.0,0.01836]
[1765235470059,0.26120994,90967.0,90966.0,0.01736]
[1765235470576,0.26220994,90967.0,90966.0,0.02036]
[1765235470799,0.26120994,90967.0,90966.0,0.02036]
[1765235472833,0.04135,90967.0,90966.0,0.02036]
[1765235473037,0.001,90967.0,90966.0,0.02036]
[1765235473242,0.01659,90967.0,90966.0,0.02036]
[1765235473459,0.0398,90967.0,90966.0,0.02036]
[1765235473631,0.06728249,90967.0,90966.0,0.02036]
[1765235477747,0.001,90967.0,90966.0,0.02036]
[1765235477931,0.06728249,90967.0,90966.0,0.02036]
[1765235478549,0.06728249,90967.0,90966.0,0.003]
[1765235479026,0.06728249,90967.0,90958.0,0.06134674]
[1765235479027,0.01099565,90945.0,90942.0,0.04398674]
[1765235479312,0.2199228,90941.0,90940.0,0.00217338]
[1765235479503,0.2587228,90941.0,90940.0,0.00217338]
[1765235480673,0.2597228,90941.0,90940.0,0.00817338]
[1765235481072,0.2597228,90941.0,90913.0,0.04398674]
[1765235481073,0.21998812,90914.0,90913.0,0.04398674]
[1765235481273,0.24718812,90914.0,90913.0,0.04398674]
[1765235481474,0.05041,90914.0,90913.0,0.04398674]
[1765235481695,0.05041,90914.0,90913.0,0.04478388]
[1765235482329,0.0272,90914.0,90913.0,0.04478388]
[1765235482535,0.01099892,90918.0,90914.0,0.0109994]
[1765235482975,0.01099892,90918.0,90915.0,0.23098498]
[1765235483219,0.01099843,90922.0,90918.0,0.01099892]
[1765235484471,0.23097035,90921.0,90916.0,0.01099916]
[1765235484655,0.0226088,90919.0,90916.0,0.01099916]
[1765235485002,0.0226088,90919.0,90918.0,0.001]
[1765235485199,0.01161,90919.0,90918.0,0.004]
[1765235485671,0.05041,90919.0,90918.0,0.001]
[1765235486025,0.05141,90919.0,90918.0,0.001]
[1765235486227,0.23097736,90918.0,90915.0,0.01099928]
[1765235486429,0.01559,90917.0,90915.0,0.01099928]
[1765235486762,0.25418736,90918.0,90916.0,0.001]
[1765235486963,0.25418736,90918.0,90915.0,0.01099928]
[1765235487141,0.01559,90916.0,90915.0,0.01099928]
[1765235487743,0.01559,90916.0,90913.0,0.05498626]
[1765235487968,0.01559,90914.0,90913.0,0.04398674]
[1765235488367,0.0388,90914.0,90913.0,0.04478388]
[1765235489383,0.01859,90914.0,90913.0,0.04578388]
[1765235490683,0.003,90914.0,90913.0,0.04578388]
[1765235491286,0.003,90914.0,90913.0,0.05678045]
[1765235491463,0.003,90914.0,90913.0,0.04578388]
[1765235494681,0.0418,90914.0,90913.0,0.04578388]
[1765235495847,0.0418,90914.0,90913.0,0.01919714]
[1765235496058,0.04341287,90914.0,90913.0,0.01919714]
[1765235497568,0.04341287,90914.0,90913.0,0.00179714]
[1765235497681,0.04441287,90914.0,90913.0,0.00179714]
[1765235498514,0.04441287,90914.0,90910.0,0.0002]
[1765235498515,0.21999538,90911.0,90910.0,0.0002]
[1765235498718,0.23719825,90911.0,90910.0,0.0002]
[1765235498918,0.26040825,90911.0,90910.0,0.0002]
[1765235500055,0.26040825,90911.0,90910.0,0.0012]
[1765235500056,0.26840825,90911.0,90910.0,0.0012]
[1765235500257,0.26840825,90911.0,90910.0,0.00158845]
[1765235500463,0.27140825,90911.0,90910.0,0.00158845]
[1765235501615,0.36894538,90911.0,90910.0,0.00158845]
[1765235502050,0.27140825,90911.0,90910.0,0.00158845]
[1765235504914,0.26979538,90911.0,90910.0,0.00158845]
[1765235505563,0.26679538,90911.0,90910.0,0.00158845]
[1765235505759,0.25879538,90911.0,90910.0,0.00058845]
[1765235505968,0.01559,90911.0,90910.0,0.00258845]
[1765235506178,0.23758538,90911.0,90910.0,0.00258845]
[1765235506377,0.01759,90911.0,90910.0,0.00258845]
[1765235507453,0.04173,90911.0,90910.0,0.00258845]
[1765235507656,0.03973,90911.0,90910.0,0.00058845]
[1765235508010,0.04173,90911.0,90910.0,0.00158845]
[1765235513454,0.06922942,90911.0,90910.0,0.00158845]
[1765235514917,0.08149942,90911.0,90910.0,0.00158845]
[1765235517564,0.02986,90911.0,90910.0,0.00158845]
[1765235517958,0.01427,90911.0,90910.0,0.00158845]
[1765235520498,0.002,90911.0,90910.0,0.00158845]
[1765235520736,0.002,90911.0,90910.0,0.02358845]
[1765235520955,0.002,90911.0,90910.0,0.00158845]
[1765235522780,0.002,90911.0,90910.0,0.58070545]
[1765235523008,0.002,90911.0,90910.0,0.66522844]
[1765235524223,0.01238,90926.0,90925.0,0.5429615]
[1765235524532,0.01238,90926.0,90925.0,0.5603615]
[1765235525321,0.02326674,90936.0,90934.0,0.323]
[1765235525322,0.01227,90936.0,90934.0,0.323]
[1765235526191,0.0275,90935.0,90934.0,0.323]
[1765235526404,0.01238,90935.0,90934.0,0.323]
[1765235526614,0.05185,90935.0,90934.0,0.323]
[1765235527058,0.27178731,90935.0,90934.0,0.323]
[1765235527667,0.27678731,90935.0,90934.0,0.325]
[1765235528767,0.25243731,90935.0,90934.0,0.325]
[1765235529608,0.0325,90935.0,90934.0,0.325]
[1765235530250,0.005,90935.0,90934.0,0.325]
[1765235534729,0.0166,90935.0,90934.0,0.325]
[1765235534901,0.0166,90935.0,90934.0,0.54493973]
[1765235534902,0.005,90935.0,90934.0,0.54493973]
[1765235535057,0.005,90935.0,90934.0,0.325]
[1765235535271,0.05696,90935.0,90934.0,0.325]
[1765235537928,0.03278,90935.0,90934.0,0.325]
[1765235538263,0.005,90935.0,90934.0,0.54493973]
[1765235539518,0.0109965,90938.0,90935.0,0.323]
[1765235539725,0.21993731,90935.0,90934.0,0.002]
[1765235539924,0.27189731,90935.0,90934.0,0.0194]
[1765235540337,0.27189731,90935.0,90934.0,0.0184]
[1765235541529,0.27189731,90935.0,90934.0,0.001]
[1765235541666,0.27189731,90935.0,90934.0,0.0184]
[1765235542510,0.27189731,90935.0,90934.0,0.0194]
[1765235544607,0.02778,90935.0,90934.0,0.0194]
[1765235544807,0.0116,90935.0,90934.0,0.0194]
[1765235545126,0.0116,90935.0,90934.0,0.3424]
[1765235547214,0.0109965,90938.0,90935.0,0.01099686]
[1765235548187,0.02418,90938.0,90936.0,0.33399674]
[1765235548590,0.01618,90937.0,90936.0,0.33399674]
[1765235549616,0.02717662,90937.0,90936.0,0.001]
[1765235549824,0.02717662,90937.0,90934.0,0.3404]
[1765235549825,0.2712907,90937.0,90934.0,0.3404]
[1765235550075,0.0116,90935.0,90934.0,0.3404]
[1765235550482,0.0116,90935.0,90934.0,0.56033973]
[1765235550989,0.0116,90935.0,90934.0,0.0174]
[1765235551754,0.0116,90935.0,90934.0,0.23733973]
[1765235551952,0.0146,90935.0,90934.0,0.56233973]
[1765235552410,0.0146,90935.0,90934.0,0.3424]
[1765235557044,0.03078,90935.0,90934.0,0.3424]
[1765235557283,0.05496,90935.0,90934.0,0.3424]
[1765235558679,0.05657287,90935.0,90934.0,0.3424]
[1765235558884,0.08406503,90935.0,90934.0,0.3424]
[1765235560154,0.1639496,90935.0,90934.0,0.002]
[1765235560478,0.21999538,90911.0,90910.0,0.57598593]
[1765235560810,0.24777538,90911.0,90910.0,0.00058845]
[1765235561018,0.27195538,90911.0,90910.0,0.00058845]
[1765235561572,0.27795538,90911.0,90910.0,0.00258845]
[1765235571587,0.29304079,90911.0,90910.0,0.00258845]
[1765235571800,0.27795538,90911.0,90910.0,0.00258845]
[1765235575672,0.22000748,90906.0,90905.0,0.00023625]